[Event "Early-Titled-Tuesday-Blitz-April-02-2024"]
[Site "Chess.com"]
[Date "2024.04.02"]
[Round "11"]
[White "BashiqChess"]
[Black "guillembaches"]
[Result "1/2-1/2"]
[WhiteElo "2505"]
[BlackElo "2565"]
[TimeControl "180+1"]
[EndTime "10:11:01 PDT"]
[Termination "Game drawn by 50-move rule"]

1. Nf3 {[%clk 0:03:00.9]} 1... d5 {[%clk 0:02:59]} 2. b3 {[%clk 0:03:01.1]} 2...
Nf6 {[%clk 0:02:57]} 3. Bb2 {[%clk 0:03:01.4]} 3... Bg4 {[%clk 0:02:57.1]} 4. g3
{[%clk 0:03:01.2]} 4... e6 {[%clk 0:02:54.4]} 5. Bg2 {[%clk 0:03:01.4]} 5... Be7
{[%clk 0:02:53.6]} 6. O-O {[%clk 0:03:01.9]} 6... O-O {[%clk 0:02:52.6]} 7. d3
{[%clk 0:03:01.8]} 7... c6 {[%clk 0:02:50.5]} 8. Nbd2 {[%clk 0:03:02.3]} 8...
Nbd7 {[%clk 0:02:48.8]} 9. h3 {[%clk 0:03:02.8]} 9... Bh5 {[%clk 0:02:48.3]} 10.
c4 {[%clk 0:03:02.7]} 10... a5 {[%clk 0:02:47.2]} 11. g4 {[%clk 0:03:00.3]}
11... Bg6 {[%clk 0:02:46.8]} 12. Ne5 {[%clk 0:03:00.9]} 12... Nxe5 {[%clk
0:02:42.6]} 13. Bxe5 {[%clk 0:03:01.8]} 13... a4 {[%clk 0:02:38.8]} 14. bxa4
{[%clk 0:02:58.8]} 14... Qa5 {[%clk 0:02:38.4]} 15. Rb1 {[%clk 0:02:49.6]} 15...
Ra7 {[%clk 0:02:27.2]} 16. Bd4 {[%clk 0:02:12.3]} 16... c5 {[%clk 0:02:22.6]}
17. Bxf6 {[%clk 0:02:11.4]} 17... Bxf6 {[%clk 0:02:22.8]} 18. cxd5 {[%clk
0:02:12]} 18... exd5 {[%clk 0:02:22.9]} 19. Bxd5 {[%clk 0:02:12.2]} 19... Qc7
{[%clk 0:01:56.7]} 20. Bg2 {[%clk 0:01:57.9]} 20... h5 {[%clk 0:01:56.1]} 21.
Ne4 {[%clk 0:01:54.9]} 21... Bxe4 {[%clk 0:01:46.2]} 22. Bxe4 {[%clk 0:01:47]}
22... hxg4 {[%clk 0:01:41.7]} 23. hxg4 {[%clk 0:01:47.9]} 23... g6 {[%clk
0:01:27.4]} 24. Kg2 {[%clk 0:01:41.8]} 24... Kg7 {[%clk 0:01:27.2]} 25. Rh1
{[%clk 0:01:40]} 25... Qd7 {[%clk 0:01:22.7]} 26. f3 {[%clk 0:01:33.5]} 26...
Qxa4 {[%clk 0:01:14.3]} 27. Qc1 {[%clk 0:01:09.2]} 27... Rh8 {[%clk 0:00:56.4]}
28. Rxh8 {[%clk 0:00:30.4]} 28... Kxh8 {[%clk 0:00:57.3]} 29. Qxc5 {[%clk
0:00:30.8]} 29... Kg7 {[%clk 0:00:51.5]} 30. Rxb7 {[%clk 0:00:15.9]} 30... Rxb7
{[%clk 0:00:47.2]} 31. Bxb7 {[%clk 0:00:16.8]} 31... Qxa2 {[%clk 0:00:47.6]} 32.
Qf2 {[%clk 0:00:15.3]} 32... Qd2 {[%clk 0:00:43.5]} 33. Be4 {[%clk 0:00:14.4]}
33... Bg5 {[%clk 0:00:37.4]} 34. Qd4+ {[%clk 0:00:10.2]} 34... Kg8 {[%clk
0:00:37.6]} 35. Qf2 {[%clk 0:00:06.2]} 35... Be3 {[%clk 0:00:36.2]} 36. Qf1
{[%clk 0:00:06.8]} 36... g5 {[%clk 0:00:29.7]} 37. Bd5 {[%clk 0:00:03.9]} 37...
Kg7 {[%clk 0:00:28.5]} 38. Bb3 {[%clk 0:00:04]} 38... Qc1 {[%clk 0:00:23.9]} 39.
Qxc1 {[%clk 0:00:04]} 39... Bxc1 {[%clk 0:00:24.3]} 40. Kf2 {[%clk 0:00:03.9]}
40... Kf6 {[%clk 0:00:23.4]} 41. e3 {[%clk 0:00:04.1]} 41... Ke7 {[%clk
0:00:22.9]} 42. Ke2 {[%clk 0:00:04.3]} 42... f6 {[%clk 0:00:23.3]} 43. d4 {[%clk
0:00:04.7]} 43... Kd6 {[%clk 0:00:23.2]} 44. Kd3 {[%clk 0:00:05.2]} 44... Ba3
{[%clk 0:00:20.6]} 45. Ke4 {[%clk 0:00:05.2]} 45... Bc1 {[%clk 0:00:19.8]} 46.
Bc4 {[%clk 0:00:05]} 46... Bd2 {[%clk 0:00:19.4]} 47. Bg8 {[%clk 0:00:05.3]}
47... Bc1 {[%clk 0:00:19.6]} 48. Bh7 {[%clk 0:00:05.8]} 48... Bd2 {[%clk
0:00:19.7]} 49. Bg6 {[%clk 0:00:06.5]} 49... Bc1 {[%clk 0:00:19.9]} 50. Bf5
{[%clk 0:00:07.2]} 50... Bd2 {[%clk 0:00:20]} 51. Kd3 {[%clk 0:00:07.8]} 51...
Bc1 {[%clk 0:00:20.2]} 52. e4 {[%clk 0:00:07.3]} 52... Bf4 {[%clk 0:00:19.6]}
53. Bh7 {[%clk 0:00:07.6]} 53... Bh2 {[%clk 0:00:19.7]} 54. Bg8 {[%clk
0:00:08.1]} 54... Bf4 {[%clk 0:00:19.9]} 55. Bc4 {[%clk 0:00:08.7]} 55... Bh2
{[%clk 0:00:20]} 56. Bd5 {[%clk 0:00:08.4]} 56... Bf4 {[%clk 0:00:20.2]} 57. Kc4
{[%clk 0:00:08.2]} 57... Bh2 {[%clk 0:00:20.3]} 58. Bb7 {[%clk 0:00:07.3]} 58...
Bf4 {[%clk 0:00:20.2]} 59. Kb5 {[%clk 0:00:06.8]} 59... Be3 {[%clk 0:00:19.6]}
60. Kc4 {[%clk 0:00:06.9]} 60... Bf4 {[%clk 0:00:19.5]} 61. Bc8 {[%clk 0:00:07]}
61... Bg3 {[%clk 0:00:18.4]} 62. Kb5 {[%clk 0:00:05.9]} 62... Bf2 {[%clk
0:00:18.5]} 63. d5 {[%clk 0:00:06.2]} 63... Bg3 {[%clk 0:00:18.2]} 64. Kb6
{[%clk 0:00:04.9]} 64... Be5 {[%clk 0:00:18.6]} 65. Ba6 {[%clk 0:00:04.8]} 65...
Bf4 {[%clk 0:00:18.4]} 66. Kb7 {[%clk 0:00:05.1]} 66... Be5 {[%clk 0:00:18.5]}
67. Kc8 {[%clk 0:00:05.7]} 67... Bf4 {[%clk 0:00:18.7]} 68. Kd8 {[%clk
0:00:06.2]} 68... Be5 {[%clk 0:00:18.9]} 69. Ke8 {[%clk 0:00:06.7]} 69... Bc3
{[%clk 0:00:18.9]} 70. Kf7 {[%clk 0:00:06.6]} 70... Bd4 {[%clk 0:00:18.8]} 71.
Kg6 {[%clk 0:00:07.1]} 71... Bc3 {[%clk 0:00:18.5]} 72. Kf5 {[%clk 0:00:07.5]}
72... Bd4 {[%clk 0:00:18.6]} 73. f4 {[%clk 0:00:07.5]} 73... gxf4 {[%clk
0:00:18.5]} 74. Kxf4 {[%clk 0:00:08.4]} 74... Be5+ {[%clk 0:00:18.7]} 75. Kf5
{[%clk 0:00:08.8]} 75... Bc3 {[%clk 0:00:18.7]} 76. Bb5 {[%clk 0:00:05.4]} 76...
Bd4 {[%clk 0:00:18.5]} 77. Bf1 {[%clk 0:00:05.4]} 77... Bc3 {[%clk 0:00:18.7]}
78. Be2 {[%clk 0:00:05.2]} 78... Bd4 {[%clk 0:00:18.9]} 79. Bd1 {[%clk
0:00:05.9]} 79... Bc3 {[%clk 0:00:19.1]} 80. Bc2 {[%clk 0:00:06.3]} 80... Bd4
{[%clk 0:00:19.3]} 81. Bb3 {[%clk 0:00:06.6]} 81... Bc3 {[%clk 0:00:19.4]} 82.
Kf4 {[%clk 0:00:06.5]} 82... Bd4 {[%clk 0:00:19.3]} 83. Kf3 {[%clk 0:00:06.1]}
83... Be5 {[%clk 0:00:19.2]} 84. Ke3 {[%clk 0:00:06.1]} 84... Ba1 {[%clk
0:00:19.3]} 85. Ba2 {[%clk 0:00:05.3]} 85... Be5 {[%clk 0:00:19.2]} 86. Kf3
{[%clk 0:00:05.8]} 86... Ba1 {[%clk 0:00:19]} 87. Kf4 {[%clk 0:00:06.5]} 87...
Be5+ {[%clk 0:00:18.9]} 88. Kf5 {[%clk 0:00:06.8]} 88... Ba1 {[%clk 0:00:19]}
89. g5 {[%clk 0:00:04.1]} 89... fxg5 {[%clk 0:00:18.5]} 90. Kxg5 {[%clk
0:00:05]} 90... Be5 {[%clk 0:00:18.6]} 91. Bb1 {[%clk 0:00:05.2]} 91... Bh2
{[%clk 0:00:18.5]} 92. Kg4 {[%clk 0:00:05.5]} 92... Be5 {[%clk 0:00:18.7]} 93.
Kf3 {[%clk 0:00:06]} 93... Bb2 {[%clk 0:00:18.8]} 94. Ke2 {[%clk 0:00:06.2]}
94... Be5 {[%clk 0:00:19.2]} 95. Bd3 {[%clk 0:00:06.7]} 95... Bh2 {[%clk
0:00:19.4]} 96. Kd1 {[%clk 0:00:07.4]} 96... Be5 {[%clk 0:00:19.7]} 97. Kc2
{[%clk 0:00:08]} 97... Bh2 {[%clk 0:00:19.9]} 98. Kb3 {[%clk 0:00:08.6]} 98...
Be5 {[%clk 0:00:20.2]} 99. Bc2 {[%clk 0:00:09.2]} 99... Bh2 {[%clk 0:00:20.5]}
100. Ka4 {[%clk 0:00:09.9]} 100... Be5 {[%clk 0:00:20.7]} 101. Bb1 {[%clk
0:00:10.6]} 101... Bh2 {[%clk 0:00:20.7]} 102. Kb5 {[%clk 0:00:11.5]} 102... Be5
{[%clk 0:00:20.8]} 103. Kc4 {[%clk 0:00:12.4]} 103... Bh2 {[%clk 0:00:20.9]}
104. Kd3 {[%clk 0:00:13.3]} 104... Be5 {[%clk 0:00:21]} 105. Ke2 {[%clk
0:00:14.2]} 105... Ba1 {[%clk 0:00:21.1]} 106. Bc2 {[%clk 0:00:15.1]} 106... Be5
{[%clk 0:00:20.9]} 107. Bd1 {[%clk 0:00:15.3]} 107... Bf6 {[%clk 0:00:21.2]}
108. Kf3 {[%clk 0:00:15.8]} 108... Be5 {[%clk 0:00:21.5]} 109. Kg4 {[%clk
0:00:16.7]} 109... Bc3 {[%clk 0:00:21.8]} 110. Kf5 {[%clk 0:00:17.4]} 110... Be5
{[%clk 0:00:21.9]} 111. Be2 {[%clk 0:00:18]} 111... Ba1 {[%clk 0:00:22.3]} 112.
Bd3 {[%clk 0:00:18.5]} 112... Bd4 {[%clk 0:00:22.4]} 113. Bc4 {[%clk 0:00:19.2]}
113... Bc3 {[%clk 0:00:22.6]} 114. Bb3 {[%clk 0:00:19.6]} 114... Bb2 {[%clk
0:00:22.6]} 115. Ba4 {[%clk 0:00:20.5]} 115... Ba1 {[%clk 0:00:22.6]} 116. Bc6
{[%clk 0:00:21.4]} 116... Bb2 {[%clk 0:00:22.8]} 117. Kg4 {[%clk 0:00:21.8]}
117... Ba1 {[%clk 0:00:22.8]} 118. Kf3 {[%clk 0:00:22.7]} 118... Bb2 {[%clk
0:00:22.9]} 119. Ke3 {[%clk 0:00:23.6]} 119... Ba1 {[%clk 0:00:23.1]} 120. Kd3
{[%clk 0:00:24.2]} 120... Be5 {[%clk 0:00:23.1]} 121. Kc2 {[%clk 0:00:25.1]}
121... Bf6 {[%clk 0:00:23.2]} 122. Kd2 {[%clk 0:00:26]} 122... Be5 {[%clk
0:00:23.5]} 123. Kd1 {[%clk 0:00:26.9]} 123... Bf6 {[%clk 0:00:23.8]} 124. Ke2
{[%clk 0:00:27.8]} 124... Be5 {[%clk 0:00:23.9]} 125. Kf1 {[%clk 0:00:28.7]}
125... Bf6 {[%clk 0:00:24.2]} 126. Kg2 {[%clk 0:00:29.6]} 126... Be5 {[%clk
0:00:24.5]} 127. Kh3 {[%clk 0:00:30.2]} 127... Bb2 {[%clk 0:00:24.7]} 128. Kg4
{[%clk 0:00:31.1]} 128... Bc3 {[%clk 0:00:24.9]} 129. Kh5 {[%clk 0:00:32]}
129... Bb2 {[%clk 0:00:25.2]} 130. Kh6 {[%clk 0:00:32.9]} 130... Bc3 {[%clk
0:00:25.4]} 131. Ba4 {[%clk 0:00:33.8]} 131... Bb2 {[%clk 0:00:25.6]} 132. Bc2
{[%clk 0:00:34.7]} 132... Bc3 {[%clk 0:00:25.9]} 133. Kg6 {[%clk 0:00:35.6]}
133... Bb2 {[%clk 0:00:26.2]} 134. Kf5 {[%clk 0:00:36.5]} 134... Bc3 {[%clk
0:00:25.9]} 135. Kg4 {[%clk 0:00:37.4]} 135... Bb2 {[%clk 0:00:26]} 136. Kf3
{[%clk 0:00:38.3]} 136... Bc3 {[%clk 0:00:26.1]} 137. Ke2 {[%clk 0:00:38.9]}
137... Be5 {[%clk 0:00:26.3]} 138. Bd3 {[%clk 0:00:39.1]} 138... Bf6 {[%clk
0:00:26]} 139. Kf2 {[%clk 0:00:39.6]} 139... Be5 {[%clk 0:00:26.3]} 140. Bf1
{[%clk 0:00:40.3]} 1/2-1/2